[Event "Live Chess"]
[Site "Chess.com"]
[Date "2024.06.01"]
[Round "-"]
[White "MaksymYurii"]
[Black "dhairyapandyauk"]
[Result "0-1"]
[WhiteElo "933"]
[BlackElo "1657"]
[TimeControl "300"]
[EndTime "12:33:58 PDT"]
[Termination "dhairyapandyauk won by checkmate"]

1. e4 {[%clk 0:04:56.9]} 1... e5 {[%clk 0:04:59]} 2. Nf3 {[%clk 0:04:56.1]} 2...
Nc6 {[%clk 0:04:58.2]} 3. Bc4 {[%clk 0:04:55.3]} 3... Bc5 {[%clk 0:04:57.8]} 4.
d3 {[%clk 0:04:48.5]} 4... d6 {[%clk 0:04:55.9]} 5. Nc3 {[%clk 0:04:44.9]} 5...
Nf6 {[%clk 0:04:52.9]} 6. Be3 {[%clk 0:04:28]} 6... Bg4 {[%clk 0:04:50.1]} 7.
Bxc5 {[%clk 0:04:24.9]} 7... dxc5 {[%clk 0:04:49.5]} 8. Nd5 {[%clk 0:04:19.9]}
8... Nxd5 {[%clk 0:04:38.1]} 9. Bxd5 {[%clk 0:04:15.9]} 9... Nd4 {[%clk
0:04:31.8]} 10. Bxf7+ {[%clk 0:04:06.4]} 10... Kf8 {[%clk 0:04:24.3]} 11. c3
{[%clk 0:03:53.3]} 11... Bxf3 {[%clk 0:04:15.4]} 12. gxf3 {[%clk 0:03:51.1]}
12... Kxf7 {[%clk 0:04:15]} 13. cxd4 {[%clk 0:03:48.1]} 13... Qxd4 {[%clk
0:04:14.6]} 14. Rg1 {[%clk 0:03:32.2]} 14... Qxb2 {[%clk 0:04:10]} 15. Qb3+
{[%clk 0:03:29.4]} 15... Qxb3 {[%clk 0:04:08.2]} 16. axb3 {[%clk 0:03:29.3]}
16... b5 {[%clk 0:04:06.8]} 17. Rg5 {[%clk 0:03:26]} 17... Kf6 {[%clk 0:04:06]}
18. Rf5+ {[%clk 0:03:24.1]} 18... Ke6 {[%clk 0:04:05.1]} 19. Ra5 {[%clk
0:03:22.7]} 19... g6 {[%clk 0:04:02.3]} 20. Rg5 {[%clk 0:03:19.4]} 20... c6
{[%clk 0:04:00.4]} 21. Ra6 {[%clk 0:03:13.6]} 21... Rhc8 {[%clk 0:03:55.8]} 22.
f4 {[%clk 0:03:11.7]} 22... exf4 {[%clk 0:03:53.1]} 23. Rxc5 {[%clk 0:03:09.3]}
23... Kd6 {[%clk 0:03:50.6]} 24. b4 {[%clk 0:02:53.5]} 24... Rc7 {[%clk
0:03:44.9]} 25. e5+ {[%clk 0:02:52.2]} 25... Ke6 {[%clk 0:03:40.8]} 26. d4
{[%clk 0:02:25.4]} 26... Rac8 {[%clk 0:03:28.5]} 27. Ke2 {[%clk 0:02:11]} 27...
Kf5 {[%clk 0:03:25.4]} 28. f3 {[%clk 0:02:07.9]} 28... Rd7 {[%clk 0:03:20.6]}
29. Kd3 {[%clk 0:02:05.4]} 29... Rcd8 {[%clk 0:03:18.9]} 30. Raxc6 {[%clk
0:01:59.6]} 30... Rxd4+ {[%clk 0:03:18.4]} 31. Kc3 {[%clk 0:01:58.2]} 31... Rd3+
{[%clk 0:03:17.3]} 32. Kb2 {[%clk 0:01:56.5]} 32... Rd2+ {[%clk 0:03:16.1]} 33.
Rc2 {[%clk 0:01:55]} 33... R2d3 {[%clk 0:03:10.4]} 34. R2c3 {[%clk 0:01:52.5]}
34... Rxc3 {[%clk 0:03:05.5]} 35. Rxc3 {[%clk 0:01:51]} 35... Rd2+ {[%clk
0:03:03.7]} 36. Rc2 {[%clk 0:01:49.8]} 36... Rxc2+ {[%clk 0:03:03]} 37. Kxc2
{[%clk 0:01:49]} 37... Kxe5 {[%clk 0:03:02.6]} 38. Kd3 {[%clk 0:01:47.3]} 38...
Kd5 {[%clk 0:03:02]} 39. Kc3 {[%clk 0:01:41.3]} 39... g5 {[%clk 0:02:55]} 40. h3
{[%clk 0:01:37.6]} 40... h5 {[%clk 0:02:46.4]} 41. Kd3 {[%clk 0:01:31.9]} 41...
Ke5 {[%clk 0:02:39.8]} 42. Kc3 {[%clk 0:01:21.8]} 42... Kf5 {[%clk 0:02:15.5]}
43. Kd4 {[%clk 0:01:17.1]} 43... g4 {[%clk 0:02:15]} 44. hxg4+ {[%clk
0:01:13.8]} 44... hxg4 {[%clk 0:02:14.6]} 45. fxg4+ {[%clk 0:01:11.7]} 45...
Kxg4 {[%clk 0:02:13.9]} 46. Kc5 {[%clk 0:01:10.8]} 46... f3 {[%clk 0:02:13.2]}
47. Kxb5 {[%clk 0:01:10.2]} 47... f2 {[%clk 0:02:12.6]} 48. Ka6 {[%clk
0:01:09.6]} 48... f1=Q+ {[%clk 0:02:11.7]} 49. b5 {[%clk 0:01:09.1]} 49... Qa1+
{[%clk 0:02:07.8]} 50. Kb7 {[%clk 0:01:08]} 50... Qa5 {[%clk 0:02:06.2]} 51. Kb8
{[%clk 0:01:04]} 51... Qxb5+ {[%clk 0:02:05.1]} 52. Kxa7 {[%clk 0:01:03.1]}
52... Kf5 {[%clk 0:02:03.8]} 53. Ka8 {[%clk 0:01:02]} 53... Ke6 {[%clk
0:02:03.4]} 54. Ka7 {[%clk 0:01:01.9]} 54... Kd7 {[%clk 0:02:02.9]} 55. Ka8
{[%clk 0:01:01.8]} 55... Kc7 {[%clk 0:02:02.3]} 56. Ka7 {[%clk 0:01:01.7]} 56...
Qb7# {[%clk 0:02:01.5]} 0-1

[Event "Live Chess"]
[Site "Chess.com"]
[Date "2024.06.01"]
[Round "-"]
[White "Nathaniel250"]
[Black "DoctorMantisTobogganMD"]
[Result "1-0"]
[WhiteElo "1523"]
[BlackElo "2160"]
[TimeControl "300"]
[EndTime "12:34:00 PDT"]
[Termination "Nathaniel250 won by checkmate"]

1. c4 {[%clk 0:04:58.5]} 1... Nf6 {[%clk 0:04:59.1]} 2. Nc3 {[%clk 0:04:56]}
2... Nc6 {[%clk 0:04:59]} 3. g3 {[%clk 0:04:54.8]} 3... e5 {[%clk 0:04:58.9]} 4.
Bg2 {[%clk 0:04:54.2]} 4... Bc5 {[%clk 0:04:58.6]} 5. e4 {[%clk 0:04:53.7]} 5...
O-O {[%clk 0:04:57.8]} 6. Nge2 {[%clk 0:04:53]} 6... Ng4 {[%clk 0:04:51.3]} 7.
O-O {[%clk 0:04:50]} 7... d6 {[%clk 0:04:50.5]} 8. d3 {[%clk 0:04:48.8]} 8... a6
{[%clk 0:04:49.1]} 9. h3 {[%clk 0:04:47.5]} 9... Nf6 {[%clk 0:04:45.7]} 10. Kh2
{[%clk 0:04:46.3]} 10... h6 {[%clk 0:04:44.4]} 11. f4 {[%clk 0:04:43.5]} 11...
Nh7 {[%clk 0:04:42.5]} 12. f5 {[%clk 0:04:42.5]} 12... f6 {[%clk 0:04:40.9]} 13.
g4 {[%clk 0:04:41.5]} 13... Nd4 {[%clk 0:04:38.1]} 14. Nxd4 {[%clk 0:04:39.6]}
14... Bxd4 {[%clk 0:04:38]} 15. Ne2 {[%clk 0:04:37.4]} 15... Ba7 {[%clk
0:04:35.9]} 16. Bd2 {[%clk 0:04:35.4]} 16... Bd7 {[%clk 0:04:34.2]} 17. Qc1
{[%clk 0:04:34.5]} 17... c5 {[%clk 0:04:32.9]} 18. Ng3 {[%clk 0:04:30.4]} 18...
b5 {[%clk 0:04:31.1]} 19. b3 {[%clk 0:04:23]} 19... bxc4 {[%clk 0:04:28.9]} 20.
bxc4 {[%clk 0:04:22.9]} 20... a5 {[%clk 0:04:24.3]} 21. a3 {[%clk 0:04:18.5]}
21... a4 {[%clk 0:04:23.1]} 22. Nh5 {[%clk 0:04:11.5]} 22... Rf7 {[%clk
0:03:53.6]} 23. Ng3 {[%clk 0:03:58.5]} 23... Bb6 {[%clk 0:03:52]} 24. h4 {[%clk
0:03:57.3]} 24... Ba5 {[%clk 0:03:51]} 25. Bxa5 {[%clk 0:03:55.2]} 25... Qxa5
{[%clk 0:03:50]} 26. Qe1 {[%clk 0:03:54.3]} 26... Qxe1 {[%clk 0:03:26.7]} 27.
Rfxe1 {[%clk 0:03:54.2]} 27... Rb8 {[%clk 0:03:26.3]} 28. Rab1 {[%clk
0:03:51.1]} 28... Rff8 {[%clk 0:03:23.7]} 29. Ne2 {[%clk 0:03:47.2]} 29... Rfc8
{[%clk 0:03:18.5]} 30. Nc3 {[%clk 0:03:45.9]} 30... Bc6 {[%clk 0:03:16.5]} 31.
Re2 {[%clk 0:03:43.3]} 31... Nf8 {[%clk 0:03:13.5]} 32. Reb2 {[%clk 0:03:41]}
32... Nd7 {[%clk 0:03:12.1]} 33. Rxb8 {[%clk 0:03:38.1]} 33... Rxb8 {[%clk
0:03:12]} 34. Rxb8+ {[%clk 0:03:36.3]} 34... Nxb8 {[%clk 0:03:11.9]} 35. Bf1
{[%clk 0:03:31.5]} 35... Kf7 {[%clk 0:03:10.5]} 36. Be2 {[%clk 0:03:30.7]} 36...
Ke7 {[%clk 0:03:09.7]} 37. Bd1 {[%clk 0:03:29.9]} 37... Kd8 {[%clk 0:03:04.4]}
38. Nxa4 {[%clk 0:03:26.4]} 38... Bxa4 {[%clk 0:03:03.1]} 39. Bxa4 {[%clk
0:03:24.8]} 39... Kc7 {[%clk 0:03:03]} 40. Bb5 {[%clk 0:03:22.8]} 40... Kb6
{[%clk 0:03:02.9]} 41. a4 {[%clk 0:03:18.5]} 41... Ka5 {[%clk 0:03:02.2]} 42.
Kg2 {[%clk 0:03:18]} 42... Kb4 {[%clk 0:03:01.3]} 43. Kf2 {[%clk 0:03:17.6]}
43... Ka5 {[%clk 0:02:53.6]} 44. Ke2 {[%clk 0:03:16.3]} 44... Na6 {[%clk
0:02:42.1]} 45. Kd2 {[%clk 0:02:04.8]} 45... Nc7 {[%clk 0:02:17.2]} 46. Kc3
{[%clk 0:02:01.6]} 46... Na8 {[%clk 0:02:14.1]} 47. h5 {[%clk 0:01:55.8]} 47...
Nb6 {[%clk 0:02:03.1]} 48. Kb3 {[%clk 0:01:52]} 48... Nc8 {[%clk 0:02:01.3]} 49.
Kc3 {[%clk 0:01:45]} 49... Kb6 {[%clk 0:01:59.9]} 50. Kb3 {[%clk 0:01:42.2]}
50... Na7 {[%clk 0:01:50.8]} 51. Kc3 {[%clk 0:01:36.9]} 51... Ka5 {[%clk
0:01:44]} 52. Kb3 {[%clk 0:01:35.7]} 52... Nc8 {[%clk 0:01:42.4]} 53. Kc3 {[%clk
0:01:26.8]} 53... Kb6 {[%clk 0:01:35.2]} 54. Kb3 {[%clk 0:01:25.1]} 54... Kc7
{[%clk 0:01:32.3]} 55. a5 {[%clk 0:01:21.3]} 55... Kb7 {[%clk 0:01:25.4]} 56.
Ka4 {[%clk 0:01:18.6]} 56... Ka7 {[%clk 0:01:24.2]} 57. Kb3 {[%clk 0:01:13.2]}
57... Kb8 {[%clk 0:01:20.7]} 58. Ka3 {[%clk 0:01:01.6]} 58... Kc7 {[%clk
0:01:18.6]} 59. Ka4 {[%clk 0:01:00.7]} 59... Na7 {[%clk 0:01:16.7]} 60. Kb3
{[%clk 0:00:53.8]} 60... Kd8 {[%clk 0:01:14.5]} 61. Ka4 {[%clk 0:00:52.3]} 61...
Ke7 {[%clk 0:01:09.3]} 62. a6 {[%clk 0:00:50.1]} 62... Kd8 {[%clk 0:01:08.3]}
63. Ka5 {[%clk 0:00:48.9]} 63... Kc7 {[%clk 0:01:08.2]} 64. Be8 {[%clk
0:00:43.9]} 64... Nc8 {[%clk 0:01:05.7]} 65. Bb5 {[%clk 0:00:39.7]} 65... Kb8
{[%clk 0:01:02.7]} 66. Bd7 {[%clk 0:00:36.1]} 66... Na7 {[%clk 0:00:56.6]} 67.
Bb5 {[%clk 0:00:35]} 67... Kc7 {[%clk 0:00:55.4]} 68. Be8 {[%clk 0:00:33.5]}
68... Nc8 {[%clk 0:00:48.1]} 69. Bb5 {[%clk 0:00:32.3]} 69... Nb6 {[%clk
0:00:47.3]} 70. Be8 {[%clk 0:00:31]} 70... Na8 {[%clk 0:00:46.5]} 71. Bb5 {[%clk
0:00:29.9]} 71... Kb8 {[%clk 0:00:45.5]} 72. Bc6 {[%clk 0:00:27.1]} 72... Nc7
{[%clk 0:00:42.8]} 73. Kb6 {[%clk 0:00:23.6]} 73... Nxa6 {[%clk 0:00:39.9]} 74.
Kxa6 {[%clk 0:00:22.4]} 74... Kc7 {[%clk 0:00:39.8]} 75. Kb5 {[%clk 0:00:21.3]}
75... Kb8 {[%clk 0:00:38.4]} 76. Kb6 {[%clk 0:00:20.3]} 76... Kc8 {[%clk
0:00:37.3]} 77. Ka7 {[%clk 0:00:18.9]} 77... Kc7 {[%clk 0:00:36.6]} 78. Bd5
{[%clk 0:00:16.9]} 78... Kc8 {[%clk 0:00:35.6]} 79. Kb6 {[%clk 0:00:16.1]} 79...
Kd7 {[%clk 0:00:34.4]} 80. Kb7 {[%clk 0:00:15.3]} 80... Kd8 {[%clk 0:00:33.4]}
81. Kc6 {[%clk 0:00:14.9]} 81... Ke7 {[%clk 0:00:32.5]} 82. Kc7 {[%clk
0:00:14.4]} 82... Ke8 {[%clk 0:00:31.8]} 83. Kxd6 {[%clk 0:00:14.1]} 83... Kd8
{[%clk 0:00:31.7]} 84. Kxc5 {[%clk 0:00:13.7]} 84... Kc7 {[%clk 0:00:31.6]} 85.
Kb5 {[%clk 0:00:13]} 85... Kd6 {[%clk 0:00:30.4]} 86. c5+ {[%clk 0:00:12.6]}
86... Kc7 {[%clk 0:00:30.3]} 87. c6 {[%clk 0:00:11.9]} 87... Kc8 {[%clk
0:00:28.6]} 88. Kb6 {[%clk 0:00:11.4]} 88... g5 {[%clk 0:00:27.4]} 89. fxg6
{[%clk 0:00:09.3]} 89... Kd8 {[%clk 0:00:27.3]} 90. g7 {[%clk 0:00:08.9]} 90...
Ke7 {[%clk 0:00:26.7]} 91. g8=Q {[%clk 0:00:07]} 91... f5 {[%clk 0:00:26.6]} 92.
Qf7+ {[%clk 0:00:06.5]} 92... Kd6 {[%clk 0:00:25]} 93. Qe6# {[%clk 0:00:04.9]}
1-0

[Event "Live Chess"]
[Site "Chess.com"]
[Date "2024.06.01"]
[Round "-"]
[White "Brooms1989"]
[Black "nitrofish07"]
[Result "0-1"]
[WhiteElo "1088"]
[BlackElo "2114"]
[TimeControl "300"]
[EndTime "12:34:12 PDT"]
[Termination "nitrofish07 won by resignation"]

1. e4 {[%clk 0:04:55.2]} 1... c5 {[%clk 0:04:57.9]} 2. Be2 {[%clk 0:04:53.5]}
2... d6 {[%clk 0:04:57.2]} 3. f4 {[%clk 0:04:51.8]} 3... g6 {[%clk 0:04:56.2]}
4. Nf3 {[%clk 0:04:50.6]} 4... Bg7 {[%clk 0:04:55.4]} 5. d3 {[%clk 0:04:49.6]}
5... Nc6 {[%clk 0:04:53.9]} 6. O-O {[%clk 0:04:48.7]} 6... e6 {[%clk 0:04:52.3]}
7. c3 {[%clk 0:04:47.3]} 7... Nge7 {[%clk 0:04:49.7]} 8. Be3 {[%clk 0:04:46]}
8... O-O {[%clk 0:04:48.9]} 9. d4 {[%clk 0:04:44.8]} 9... b6 {[%clk 0:04:44.5]}
10. e5 {[%clk 0:04:29.5]} 10... Nf5 {[%clk 0:04:39.2]} 11. Bf2 {[%clk
0:04:27.7]} 11... Bb7 {[%clk 0:04:32.8]} 12. g4 {[%clk 0:04:24.1]} 12... Nfe7
{[%clk 0:04:30]} 13. h4 {[%clk 0:03:57]} 13... cxd4 {[%clk 0:04:21.3]} 14. cxd4
{[%clk 0:03:53.6]} 14... dxe5 {[%clk 0:04:21.2]} 15. dxe5 {[%clk 0:03:50.4]}
15... Nd5 {[%clk 0:04:15.6]} 16. Bg3 {[%clk 0:03:38.1]} 16... Ne3 {[%clk
0:04:10.8]} 17. Qxd8 {[%clk 0:03:33]} 17... Raxd8 {[%clk 0:04:10.7]} 18. Rc1
{[%clk 0:03:26.3]} 18... Nxg4 {[%clk 0:04:07.8]} 0-1

[Event "Live Chess"]
[Site "Chess.com"]
[Date "2024.06.01"]
[Round "-"]
[White "Plato_77"]
[Black "Cruiseylee78"]
[Result "1-0"]
[WhiteElo "1333"]
[BlackElo "1674"]
[TimeControl "300"]
[EndTime "12:34:22 PDT"]
[Termination "Plato_77 won by resignation"]

1. e4 {[%clk 0:04:57.7]} 1... d6 {[%clk 0:04:59.5]} 2. d4 {[%clk 0:04:56.1]}
2... Nd7 {[%clk 0:04:58.3]} 3. Nc3 {[%clk 0:04:55.2]} 3... e5 {[%clk 0:04:57.9]}
4. Nf3 {[%clk 0:04:52.9]} 4... Ngf6 {[%clk 0:04:57.5]} 5. Bc4 {[%clk 0:04:51.8]}
5... c6 {[%clk 0:04:55.9]} 6. dxe5 {[%clk 0:04:51]} 6... dxe5 {[%clk 0:04:54.9]}
7. Ng5 {[%clk 0:04:49.6]} 7... h6 {[%clk 0:04:32.7]} 8. Nxf7 {[%clk 0:04:48]}
8... Qe7 {[%clk 0:04:31]} 9. Nxh8 {[%clk 0:04:46.6]} 9... b5 {[%clk 0:04:25.8]}
10. Bb3 {[%clk 0:04:41.7]} 10... Nc5 {[%clk 0:04:12.1]} 11. Ng6 {[%clk
0:04:39.7]} 11... Qc7 {[%clk 0:04:05.1]} 12. Nxf8 {[%clk 0:04:38.2]} 12... Kxf8
{[%clk 0:04:01.8]} 13. O-O {[%clk 0:04:37.7]} 13... Nxb3 {[%clk 0:03:55.7]} 14.
axb3 {[%clk 0:04:36.4]} 14... Bg4 {[%clk 0:03:54.9]} 15. f3 {[%clk 0:04:33.4]}
15... Rd8 {[%clk 0:03:53.2]} 16. Qe2 {[%clk 0:04:31.1]} 16... Be6 {[%clk
0:03:49.1]} 17. Be3 {[%clk 0:04:30.3]} 17... Qf7 {[%clk 0:03:45.5]} 18. Rxa7
{[%clk 0:04:28.5]} 18... Qg6 {[%clk 0:03:43.2]} 19. Rd1 {[%clk 0:04:15.9]} 19...
Bh3 {[%clk 0:03:38.8]} 20. Rxd8+ {[%clk 0:04:13.3]} 1-0

[Event "Live Chess"]
[Site "Chess.com"]
[Date "2024.06.01"]
[Round "-"]
[White "LL220284LL"]
[Black "KwikPhoenix"]
[Result "0-1"]
[WhiteElo "2539"]
[BlackElo "2462"]
[TimeControl "300"]
[EndTime "12:34:47 PDT"]
[Termination "KwikPhoenix won by resignation"]

1. c4 {[%clk 0:04:56.8]} 1... f5 {[%clk 0:04:58.3]} 2. d4 {[%clk 0:04:56]} 2...
Nf6 {[%clk 0:04:56.6]} 3. Nc3 {[%clk 0:04:55.5]} 3... e6 {[%clk 0:04:56.1]} 4.
g3 {[%clk 0:04:54]} 4... Be7 {[%clk 0:04:55]} 5. Bg2 {[%clk 0:04:53.6]} 5... O-O
{[%clk 0:04:54.5]} 6. Nf3 {[%clk 0:04:53.1]} 6... d6 {[%clk 0:04:53.9]} 7. O-O
{[%clk 0:04:52.7]} 7... Ne4 {[%clk 0:04:50.4]} 8. Qc2 {[%clk 0:04:50.5]} 8...
Nxc3 {[%clk 0:04:49.8]} 9. Qxc3 {[%clk 0:04:49.4]} 9... a5 {[%clk 0:04:49.3]}
10. b3 {[%clk 0:04:47.1]} 10... Bf6 {[%clk 0:04:48.1]} 11. Bb2 {[%clk
0:04:45.3]} 11... Nc6 {[%clk 0:04:47.6]} 12. Rad1 {[%clk 0:04:42.8]} 12... Qe8
{[%clk 0:04:45.4]} 13. Qc1 {[%clk 0:04:41.3]} 13... e5 {[%clk 0:04:41.9]} 14.
dxe5 {[%clk 0:04:39.9]} 14... dxe5 {[%clk 0:04:41.8]} 15. Ng5 {[%clk 0:04:35.9]}
15... Ne7 {[%clk 0:04:26.7]} 16. e4 {[%clk 0:04:28.6]} 16... f4 {[%clk
0:04:12.5]} 17. Nf3 {[%clk 0:04:21.3]} 17... Qh5 {[%clk 0:04:03.7]} 18. Rd3
{[%clk 0:04:09.2]} 18... Bh3 {[%clk 0:03:55.7]} 19. Bxh3 {[%clk 0:04:03.5]}
19... Qxh3 {[%clk 0:03:55.6]} 20. Nxe5 {[%clk 0:04:01.6]} 20... Bxe5 {[%clk
0:03:50.4]} 21. Bxe5 {[%clk 0:03:57.1]} 21... f3 {[%clk 0:03:49.3]} 22. Rxf3
{[%clk 0:03:55.2]} 22... Rxf3 {[%clk 0:03:49.2]} 23. Bxc7 {[%clk 0:03:54.7]}
23... Qe6 {[%clk 0:03:39.2]} 24. Re1 {[%clk 0:03:48.5]} 24... Raf8 {[%clk
0:03:34.6]} 25. Re2 {[%clk 0:03:44.6]} 25... Nc6 {[%clk 0:03:33]} 26. Qd2 {[%clk
0:03:37.1]} 26... R3f7 {[%clk 0:03:24.4]} 27. Bb6 {[%clk 0:03:35.1]} 27... Rd7
{[%clk 0:03:17.6]} 28. Qg5 {[%clk 0:03:29.4]} 28... Qh3 {[%clk 0:03:05.1]} 29.
Re1 {[%clk 0:03:27]} 29... Re8 {[%clk 0:02:36]} 30. Bxa5 {[%clk 0:03:16.5]}
30... Re5 {[%clk 0:02:16.7]} 31. Qf4 {[%clk 0:03:04.8]} 31... Rxa5 {[%clk
0:02:12.7]} 32. e5 {[%clk 0:03:04.2]} 32... Rxe5 {[%clk 0:02:04.6]} 33. Rf1
{[%clk 0:02:59.5]} 33... Re8 {[%clk 0:01:54.1]} 34. c5 {[%clk 0:02:57.1]} 34...
Red8 {[%clk 0:01:52.7]} 35. b4 {[%clk 0:02:55.2]} 35... Rd1 {[%clk 0:01:50.3]}
36. Qc4+ {[%clk 0:02:54]} 36... Kh8 {[%clk 0:01:49.1]} 37. b5 {[%clk 0:02:53.1]}
37... Rxf1+ {[%clk 0:01:47.5]} 38. Qxf1 {[%clk 0:02:51.9]} 38... Qxf1+ {[%clk
0:01:47.4]} 39. Kxf1 {[%clk 0:02:51.7]} 39... Nd4 {[%clk 0:01:47.3]} 40. a4
{[%clk 0:02:50.6]} 40... Ra8 {[%clk 0:01:46.4]} 0-1

[Event "Live Chess"]
[Site "Chess.com"]
[Date "2024.06.01"]
[Round "-"]
[White "Dhaydon19"]
[Black "wadsy27"]
[Result "1/2-1/2"]
[WhiteElo "2693"]
[BlackElo "2561"]
[TimeControl "300"]
[EndTime "12:34:47 PDT"]
[Termination "Game drawn by agreement"]

1. d4 {[%clk 0:04:58.3]} 1... d5 {[%clk 0:04:55.8]} 2. Nf3 {[%clk 0:04:57.5]}
2... Nf6 {[%clk 0:04:55.3]} 3. g3 {[%clk 0:04:57]} 3... c6 {[%clk 0:04:53.5]} 4.
Bg2 {[%clk 0:04:56.5]} 4... Bf5 {[%clk 0:04:53]} 5. O-O {[%clk 0:04:54.5]} 5...
h6 {[%clk 0:04:52.1]} 6. c3 {[%clk 0:04:53.9]} 6... e6 {[%clk 0:04:51.6]} 7.
Nbd2 {[%clk 0:04:53.5]} 7... Be7 {[%clk 0:04:50]} 8. Ne5 {[%clk 0:04:52.8]} 8...
Nbd7 {[%clk 0:04:48.9]} 9. Nxd7 {[%clk 0:04:52.1]} 9... Qxd7 {[%clk 0:04:48.1]}
10. Re1 {[%clk 0:04:51.8]} 10... O-O {[%clk 0:04:47.6]} 11. e4 {[%clk
0:04:50.6]} 11... dxe4 {[%clk 0:04:47.2]} 12. Nxe4 {[%clk 0:04:50.2]} 12... Nxe4
{[%clk 0:04:46.8]} 13. Bxe4 {[%clk 0:04:49.9]} 13... Bxe4 {[%clk 0:04:46.4]} 14.
Rxe4 {[%clk 0:04:49.6]} 14... c5 {[%clk 0:04:46]} 15. Qe2 {[%clk 0:04:45]} 15...
Rfd8 {[%clk 0:04:44.4]} 16. dxc5 {[%clk 0:04:41.9]} 16... Qd1+ {[%clk
0:04:41.3]} 17. Qe1 {[%clk 0:04:39.3]} 17... Qxe1+ {[%clk 0:04:37.3]} 18. Rxe1
{[%clk 0:04:38.2]} 18... Bxc5 {[%clk 0:04:37.1]} 19. Bf4 {[%clk 0:04:37.1]}
19... Rd7 {[%clk 0:04:35.2]} 20. Rad1 {[%clk 0:04:33.8]} 20... Rad8 {[%clk
0:04:34.6]} 21. Rxd7 {[%clk 0:04:32.7]} 21... Rxd7 {[%clk 0:04:34.5]} 22. Kf1
{[%clk 0:04:31.9]} 22... g5 {[%clk 0:04:27.2]} 23. Bc1 {[%clk 0:04:28.8]} 23...
a5 {[%clk 0:04:24.2]} 24. h3 {[%clk 0:04:25]} 24... a4 {[%clk 0:04:22.1]} 25.
Ke2 {[%clk 0:04:23.9]} 25... b5 {[%clk 0:04:20.5]} 26. b3 {[%clk 0:04:22.9]}
26... Kg7 {[%clk 0:04:18.9]} 27. Bd2 {[%clk 0:04:16.2]} 27... axb3 {[%clk
0:04:13.1]} 28. axb3 {[%clk 0:04:14.4]} 28... Ra7 {[%clk 0:04:12.5]} 29. b4
{[%clk 0:04:12.4]} 29... Bb6 {[%clk 0:04:11.4]} 30. Rf1 {[%clk 0:04:01.1]} 30...
Ra2 {[%clk 0:04:10.3]} 31. Kd3 {[%clk 0:03:59.9]} 31... Kg6 {[%clk 0:04:08.5]}
32. g4 {[%clk 0:03:54.4]} 32... f5 {[%clk 0:03:59.5]} 33. f3 {[%clk 0:03:53.1]}
33... e5 {[%clk 0:03:49.1]} 34. Re1 {[%clk 0:03:47]} 34... Kf6 {[%clk
0:03:46.3]} 35. Re2 {[%clk 0:03:45.8]} 35... e4+ {[%clk 0:03:40.3]} 36. fxe4
{[%clk 0:03:43.7]} 36... f4 {[%clk 0:03:39.7]} 37. e5+ {[%clk 0:03:42.3]} 37...
Ke6 {[%clk 0:03:38.4]} 38. Re1 {[%clk 0:03:36.8]} 38... Bc7 {[%clk 0:03:34.3]}
39. h4 {[%clk 0:03:33.1]} 39... Bxe5 {[%clk 0:03:31]} 40. hxg5 {[%clk
0:03:32.1]} 40... hxg5 {[%clk 0:03:30.2]} 41. Rh1 {[%clk 0:03:31.1]} 41... Ra8
{[%clk 0:03:24.1]} 42. Rh6+ {[%clk 0:03:29.5]} 42... Bf6 {[%clk 0:03:22.8]} 43.
Bxf4 {[%clk 0:03:26.5]} 43... gxf4 {[%clk 0:03:04.7]} 44. g5 {[%clk 0:03:24.8]}
44... Kf5 {[%clk 0:03:04.4]} 45. gxf6 {[%clk 0:03:21.2]} 45... Kg5 {[%clk
0:02:52.7]} 46. Rh7 {[%clk 0:03:19]} 46... Kxf6 {[%clk 0:02:51.9]} 47. Ke4
{[%clk 0:03:15.1]} 47... Rc8 {[%clk 0:02:48.1]} 1/2-1/2